[Event "Early-Titled-Tuesday-Blitz-June-18-2024"]
[Site "Chess.com"]
[Date "2024.06.18"]
[Round "10"]
[White "sammartin99"]
[Black "LangesNasenhaar"]
[Result "1-0"]
[WhiteElo "2333"]
[BlackElo "2457"]
[TimeControl "180+1"]
[EndTime "9:58:58 PDT"]
[Termination "sammartin99 won by resignation"]

1. d4 {[%clk 0:03:00.9]} 1... g6 {[%clk 0:02:56.3]} 2. e4 {[%clk 0:03:00.5]}
2... Bg7 {[%clk 0:02:56.6]} 3. Nc3 {[%clk 0:03:00.3]} 3... c6 {[%clk 0:02:57.2]}
4. Be3 {[%clk 0:02:59.6]} 4... d5 {[%clk 0:02:57.3]} 5. e5 {[%clk 0:02:56.9]}
5... f6 {[%clk 0:02:57.8]} 6. f4 {[%clk 0:02:51.2]} 6... Nh6 {[%clk 0:02:57.8]}
7. Nf3 {[%clk 0:02:50.6]} 7... Nf5 {[%clk 0:02:53.9]} 8. Bf2 {[%clk 0:02:50.4]}
8... fxe5 {[%clk 0:02:52]} 9. fxe5 {[%clk 0:02:47.6]} 9... O-O {[%clk
0:02:51.6]} 10. Bd3 {[%clk 0:02:45.8]} 10... e6 {[%clk 0:02:44.6]} 11. O-O
{[%clk 0:02:44.8]} 11... Nd7 {[%clk 0:02:35]} 12. Ne2 {[%clk 0:02:40.3]} 12...
c5 {[%clk 0:02:33.3]} 13. c3 {[%clk 0:02:40.4]} 13... b6 {[%clk 0:02:26.2]} 14.
Ng3 {[%clk 0:02:12.6]} 14... Nxg3 {[%clk 0:02:15.4]} 15. Bxg3 {[%clk 0:02:10.1]}
15... Bh6 {[%clk 0:02:12.3]} 16. Qe2 {[%clk 0:02:05]} 16... Qe8 {[%clk
0:02:03.5]} 17. Bh4 {[%clk 0:01:55.1]} 17... Bb7 {[%clk 0:01:52.3]} 18. Ng5
{[%clk 0:01:41.1]} 18... Qe7 {[%clk 0:01:43.3]} 19. Qg4 {[%clk 0:01:37.9]} 19...
Rae8 {[%clk 0:01:22.1]} 20. Rxf8+ {[%clk 0:01:29.2]} 20... Nxf8 {[%clk
0:01:21.2]} 21. Rf1 {[%clk 0:01:28.1]} 21... Qg7 {[%clk 0:01:03.2]} 22. Rf7
{[%clk 0:01:24]} 22... Qxf7 {[%clk 0:00:56.4]} 23. Nxf7 {[%clk 0:01:24.9]} 23...
Kxf7 {[%clk 0:00:57.1]} 24. Bb5 {[%clk 0:01:20.3]} 24... Rc8 {[%clk 0:00:53.8]}
25. Bf2 {[%clk 0:00:54.7]} 25... cxd4 {[%clk 0:00:51.8]} 26. Bxd4 {[%clk
0:00:55.6]} 26... Bc6 {[%clk 0:00:42.9]} 27. Bd3 {[%clk 0:00:52.9]} 27... Kg8
{[%clk 0:00:38.3]} 28. h4 {[%clk 0:00:53.1]} 28... Be8 {[%clk 0:00:38.5]} 29. h5
{[%clk 0:00:51.5]} 29... Bg7 {[%clk 0:00:38.6]} 30. hxg6 {[%clk 0:00:48.4]}
30... Bxg6 {[%clk 0:00:38]} 31. Bxg6 {[%clk 0:00:43.1]} 31... hxg6 {[%clk
0:00:37.5]} 32. Qg5 {[%clk 0:00:41.1]} 32... Kf7 {[%clk 0:00:27]} 33. Qf4+
{[%clk 0:00:37.5]} 33... Kg8 {[%clk 0:00:26.8]} 34. a4 {[%clk 0:00:37.4]} 34...
Rc4 {[%clk 0:00:25.5]} 35. b3 {[%clk 0:00:35.5]} 35... Rc7 {[%clk 0:00:25.5]}
36. Qh4 {[%clk 0:00:32.8]} 36... Rd7 {[%clk 0:00:19.4]} 37. Kf1 {[%clk
0:00:21.6]} 37... Kf7 {[%clk 0:00:18.9]} 38. Ke2 {[%clk 0:00:20.4]} 38... Ke8
{[%clk 0:00:18.9]} 39. Kd3 {[%clk 0:00:20.3]} 39... Rf7 {[%clk 0:00:18.3]} 40.
Kc2 {[%clk 0:00:11.4]} 40... Nd7 {[%clk 0:00:18.2]} 41. Qg3 {[%clk 0:00:09.3]}
41... Nf8 {[%clk 0:00:11.4]} 42. b4 {[%clk 0:00:08.4]} 42... Rf5 {[%clk
0:00:09.3]} 43. a5 {[%clk 0:00:08.1]} 43... bxa5 {[%clk 0:00:08]} 44. bxa5
{[%clk 0:00:08.4]} 44... a6 {[%clk 0:00:08.5]} 45. Kb3 {[%clk 0:00:08.4]} 45...
Kf7 {[%clk 0:00:08.4]} 46. Qd3 {[%clk 0:00:07.4]} 46... Bxe5 {[%clk 0:00:07.1]}
47. Qxa6 {[%clk 0:00:06.6]} 47... Bxd4 {[%clk 0:00:04.4]} 48. cxd4 {[%clk
0:00:07.5]} 48... Nd7 {[%clk 0:00:02.9]} 49. Qb7 {[%clk 0:00:06.6]} 49... Ke7
{[%clk 0:00:03.2]} 50. a6 {[%clk 0:00:06.7]} 50... Rf1 {[%clk 0:00:04.1]} 51.
Kb2 {[%clk 0:00:05.9]} 51... Rf2+ {[%clk 0:00:04.1]} 52. Kc1 {[%clk 0:00:06.1]}
52... Rf1+ {[%clk 0:00:04.2]} 53. Kd2 {[%clk 0:00:06]} 53... Rf2+ {[%clk
0:00:04.3]} 54. Ke1 {[%clk 0:00:06.2]} 54... Ra2 {[%clk 0:00:03.8]} 55. a7
{[%clk 0:00:06.6]} 55... Ra1+ {[%clk 0:00:04.7]} 56. Kf2 {[%clk 0:00:06.3]}
56... Kd6 {[%clk 0:00:05.2]} 57. a8=Q {[%clk 0:00:05.9]} 57... Rxa8 {[%clk
0:00:05.9]} 58. Qxa8 {[%clk 0:00:06.6]} 58... Nf6 {[%clk 0:00:06.7]} 59. Qa6+
{[%clk 0:00:06.2]} 59... Ke7 {[%clk 0:00:06.9]} 60. Ke3 {[%clk 0:00:06.6]} 60...
Ne4 {[%clk 0:00:07]} 61. Qb7+ {[%clk 0:00:06.3]} 61... Kf6 {[%clk 0:00:07.3]}
62. Qb8 {[%clk 0:00:06.4]} 62... Nc3 {[%clk 0:00:07.1]} 63. Qe5+ {[%clk
0:00:06.6]} 63... Ke7 {[%clk 0:00:07.1]} 64. g4 {[%clk 0:00:07]} 64... Ne4
{[%clk 0:00:06.8]} 65. g5 {[%clk 0:00:07]} 65... Kf7 {[%clk 0:00:05.9]} 66. Qc7+
{[%clk 0:00:06.8]} 66... Kf8 {[%clk 0:00:05.9]} 67. Kf4 {[%clk 0:00:06.9]} 67...
Kg8 {[%clk 0:00:04.6]} 68. Qa7 {[%clk 0:00:06.7]} 68... Kf8 {[%clk 0:00:04.4]}
69. Qd7 {[%clk 0:00:06.4]} 69... Nc3 {[%clk 0:00:02]} 70. Qxe6 {[%clk
0:00:05.7]} 70... Kg7 {[%clk 0:00:02.7]} 71. Qe5+ {[%clk 0:00:05.4]} 71... Kf7
{[%clk 0:00:02.8]} 72. Qf6+ {[%clk 0:00:05.6]} 72... Ke8 {[%clk 0:00:01.7]} 73.
Qxg6+ {[%clk 0:00:06.1]} 73... Ke7 {[%clk 0:00:02.6]} 74. Qf6+ {[%clk
0:00:06.6]} 74... Kd7 {[%clk 0:00:03.5]} 75. g6 {[%clk 0:00:07.2]} 75... Ne2+
{[%clk 0:00:03.5]} 76. Ke3 {[%clk 0:00:06.9]} 76... Nxd4 {[%clk 0:00:04.4]} 77.
Kxd4 {[%clk 0:00:06.7]} 1-0

[Event "Early-Titled-Tuesday-Blitz-June-18-2024"]
[Site "Chess.com"]
[Date "2024.06.18"]
[Round "10"]
[White "Alphafischer2019"]
[Black "js20000"]
[Result "1-0"]
[WhiteElo "2661"]
[BlackElo "2795"]
[TimeControl "180+1"]
[EndTime "9:58:59 PDT"]
[Termination "Alphafischer2019 won by checkmate"]

1. Nf3 {[%clk 0:03:00.9]} 1... d6 {[%clk 0:02:58.8]} 2. d4 {[%clk 0:02:56.5]}
2... Bf5 {[%clk 0:02:57.3]} 3. Bf4 {[%clk 0:02:56.1]} 3... Nf6 {[%clk
0:02:56.5]} 4. e3 {[%clk 0:02:56.3]} 4... c6 {[%clk 0:02:56.4]} 5. Nbd2 {[%clk
0:02:55.3]} 5... Nbd7 {[%clk 0:02:56.5]} 6. h3 {[%clk 0:02:54.8]} 6... h6 {[%clk
0:02:56.1]} 7. c3 {[%clk 0:02:53.7]} 7... e6 {[%clk 0:02:54.2]} 8. Qb3 {[%clk
0:02:43.2]} 8... Nb6 {[%clk 0:02:48.4]} 9. a4 {[%clk 0:02:40.8]} 9... a5 {[%clk
0:02:48.2]} 10. Nc4 {[%clk 0:02:31.2]} 10... Nxc4 {[%clk 0:02:46]} 11. Bxc4
{[%clk 0:02:32.1]} 11... Rb8 {[%clk 0:02:42.7]} 12. O-O {[%clk 0:02:26.2]} 12...
Be7 {[%clk 0:02:41.5]} 13. Rfe1 {[%clk 0:02:24.8]} 13... O-O {[%clk 0:02:40.5]}
14. Bf1 {[%clk 0:02:19.7]} 14... Qd7 {[%clk 0:02:30.9]} 15. Nd2 {[%clk
0:02:18.5]} 15... Ne4 {[%clk 0:02:30.4]} 16. Nc4 {[%clk 0:02:09.3]} 16... b6
{[%clk 0:02:10]} 17. f3 {[%clk 0:01:57.2]} 17... Nf6 {[%clk 0:02:09.5]} 18. e4
{[%clk 0:01:57.5]} 18... Bh7 {[%clk 0:02:09.9]} 19. Bh2 {[%clk 0:01:39.6]} 19...
d5 {[%clk 0:02:03.1]} 20. Ne5 {[%clk 0:01:20.6]} 20... Qb7 {[%clk 0:02:01.5]}
21. Bd3 {[%clk 0:01:11.7]} 21... Rbc8 {[%clk 0:01:57.3]} 22. Qc2 {[%clk
0:01:07.6]} 22... dxe4 {[%clk 0:01:54.9]} 23. fxe4 {[%clk 0:01:06.6]} 23... c5
{[%clk 0:01:55.4]} 24. Qe2 {[%clk 0:00:50.1]} 24... Rcd8 {[%clk 0:01:47.9]} 25.
Ba6 {[%clk 0:00:19.3]} 25... Qa8 {[%clk 0:01:45.4]} 26. d5 {[%clk 0:00:17.5]}
26... Bxe4 {[%clk 0:01:41.5]} 27. Nc6 {[%clk 0:00:14.8]} 27... Rde8 {[%clk
0:01:36.1]} 28. Nxe7+ {[%clk 0:00:13.5]} 28... Rxe7 {[%clk 0:01:37]} 29. Bd6
{[%clk 0:00:13.2]} 29... Nxd5 {[%clk 0:01:31.3]} 30. Bxe7 {[%clk 0:00:10.5]}
30... Nxe7 {[%clk 0:01:32.2]} 31. Qxe4 {[%clk 0:00:10.1]} 31... Qxa6 {[%clk
0:01:32.8]} 32. Rad1 {[%clk 0:00:09.8]} 32... Qc8 {[%clk 0:01:31.3]} 33. Qe5
{[%clk 0:00:08.2]} 33... Rd8 {[%clk 0:01:26.4]} 34. Rd6 {[%clk 0:00:07.9]} 34...
Nf5 {[%clk 0:01:16.4]} 35. Rxd8+ {[%clk 0:00:07]} 35... Qxd8 {[%clk 0:01:16.7]}
36. Qe2 {[%clk 0:00:04.9]} 36... Qh4 {[%clk 0:01:14.4]} 37. Qf2 {[%clk
0:00:04.8]} 37... Qxa4 {[%clk 0:01:13.9]} 38. g4 {[%clk 0:00:04.9]} 38... Ne7
{[%clk 0:01:12.9]} 39. Rf1 {[%clk 0:00:05.5]} 39... f6 {[%clk 0:01:11.5]} 40.
Re1 {[%clk 0:00:03.4]} 40... Kf7 {[%clk 0:01:11.8]} 41. Qe2 {[%clk 0:00:03]}
41... Qd7 {[%clk 0:01:10.9]} 42. Rd1 {[%clk 0:00:03]} 42... Qc7 {[%clk
0:01:09.8]} 43. Re1 {[%clk 0:00:03.1]} 43... Qg3+ {[%clk 0:01:09.7]} 44. Kh1
{[%clk 0:00:03]} 44... Qxh3+ {[%clk 0:01:10.3]} 45. Kg1 {[%clk 0:00:03.9]} 45...
Qg3+ {[%clk 0:01:10.2]} 46. Kh1 {[%clk 0:00:04.6]} 46... Qd6 {[%clk 0:01:08.2]}
47. Rd1 {[%clk 0:00:04.8]} 47... Qc6+ {[%clk 0:01:08]} 48. Kg1 {[%clk
0:00:05.5]} 48... Ng6 {[%clk 0:01:07.6]} 49. Qa6 {[%clk 0:00:03.1]} 49... Ne5
{[%clk 0:01:05.7]} 50. Qa7+ {[%clk 0:00:02.9]} 50... Kg6 {[%clk 0:01:05.4]} 51.
Qb8 {[%clk 0:00:03.5]} 51... Qf3 {[%clk 0:00:54.1]} 52. Qe8+ {[%clk 0:00:03.8]}
52... Kg5 {[%clk 0:00:54.4]} 53. Qh5+ {[%clk 0:00:03.6]} 53... Kf4 {[%clk
0:00:51.8]} 54. Rf1 {[%clk 0:00:04.5]} 54... g5 {[%clk 0:00:39.2]} 55. Rxf3+
{[%clk 0:00:04.1]} 55... Kxf3 {[%clk 0:00:39]} 56. Qxh6 {[%clk 0:00:03.9]} 56...
Nxg4 {[%clk 0:00:39.5]} 57. Qh3+ {[%clk 0:00:03.6]} 57... Kf4 {[%clk 0:00:39.9]}
58. Qf1+ {[%clk 0:00:04.4]} 58... Ke5 {[%clk 0:00:39.2]} 59. Qe2+ {[%clk
0:00:05]} 59... Kf4 {[%clk 0:00:39.7]} 60. Qxe6 {[%clk 0:00:05.3]} 60... f5
{[%clk 0:00:38.6]} 61. Qxb6 {[%clk 0:00:05.9]} 61... c4 {[%clk 0:00:38]} 62.
Qd4+ {[%clk 0:00:06]} 62... Kg3 {[%clk 0:00:38.4]} 63. Qxc4 {[%clk 0:00:06.2]}
63... f4 {[%clk 0:00:38.9]} 64. Qd3+ {[%clk 0:00:06.6]} 64... f3 {[%clk
0:00:38.8]} 65. Qd6+ {[%clk 0:00:07.3]} 65... Kh3 {[%clk 0:00:37.1]} 66. Kf1
{[%clk 0:00:07.4]} 66... Kh4 {[%clk 0:00:33.2]} 67. c4 {[%clk 0:00:07.3]} 67...
Kh3 {[%clk 0:00:21.4]} 68. c5 {[%clk 0:00:07.5]} 68... a4 {[%clk 0:00:17.7]} 69.
c6 {[%clk 0:00:07.8]} 69... Nh2+ {[%clk 0:00:14.1]} 70. Qxh2+ {[%clk 0:00:06.6]}
70... Kxh2 {[%clk 0:00:14.1]} 71. c7 {[%clk 0:00:07.5]} 71... a3 {[%clk
0:00:11.4]} 72. bxa3 {[%clk 0:00:08.4]} 72... Kg3 {[%clk 0:00:09]} 73. c8=Q
{[%clk 0:00:09.3]} 73... g4 {[%clk 0:00:09.6]} 74. Qc7+ {[%clk 0:00:09.5]} 74...
Kh3 {[%clk 0:00:09.7]} 75. Kf2 {[%clk 0:00:10.2]} 75... Kh4 {[%clk 0:00:09.3]}
76. Qe5 {[%clk 0:00:10.8]} 76... g3+ {[%clk 0:00:08.2]} 77. Qxg3+ {[%clk
0:00:10]} 77... Kh5 {[%clk 0:00:09.1]} 78. Kxf3 {[%clk 0:00:10.6]} 78... Kh6
{[%clk 0:00:10]} 79. Kf4 {[%clk 0:00:11.2]} 79... Kh7 {[%clk 0:00:10.9]} 80. Kf5
{[%clk 0:00:11.9]} 80... Kh8 {[%clk 0:00:11.8]} 81. Kf6 {[%clk 0:00:12.4]} 81...
Kh7 {[%clk 0:00:12]} 82. Qg7# {[%clk 0:00:13.1]} 1-0

[Event "Early-Titled-Tuesday-Blitz-June-18-2024"]
[Site "Chess.com"]
[Date "2024.06.18"]
[Round "10"]
[White "RandomNoob04"]
[Black "Feegus"]
[Result "1/2-1/2"]
[WhiteElo "2810"]
[BlackElo "2694"]
[TimeControl "180+1"]
[EndTime "9:59:00 PDT"]
[Termination "Game drawn - insufficient material"]

1. e4 {[%clk 0:03:00.9]} 1... e5 {[%clk 0:02:59.9]} 2. d4 {[%clk 0:03:01.1]}
2... exd4 {[%clk 0:02:58.3]} 3. Qxd4 {[%clk 0:03:01.9]} 3... Nf6 {[%clk
0:02:58.7]} 4. e5 {[%clk 0:03:01.7]} 4... Nc6 {[%clk 0:02:55.3]} 5. Qe3 {[%clk
0:03:02.1]} 5... Ng4 {[%clk 0:02:54.3]} 6. Qe4 {[%clk 0:03:02.3]} 6... d5 {[%clk
0:02:41.7]} 7. exd6+ {[%clk 0:03:03.2]} 7... Be6 {[%clk 0:02:42.2]} 8. Ba6
{[%clk 0:03:03.5]} 8... Qc8 {[%clk 0:01:00.1]} 9. Qxc6+ {[%clk 0:03:02.3]} 9...
bxc6 {[%clk 0:00:58.8]} 10. Bxc8 {[%clk 0:03:03.2]} 10... Rxc8 {[%clk
0:00:59.1]} 11. dxc7 {[%clk 0:03:04.1]} 11... Rxc7 {[%clk 0:00:59.3]} 12. h3
{[%clk 0:02:59]} 12... Nf6 {[%clk 0:00:56.9]} 13. Nc3 {[%clk 0:02:58.5]} 13...
Bb4 {[%clk 0:00:55.7]} 14. Ne2 {[%clk 0:02:57.8]} 14... Bc4 {[%clk 0:00:49.2]}
15. Be3 {[%clk 0:02:47.1]} 15... Nd5 {[%clk 0:00:48.3]} 16. Bd2 {[%clk
0:01:57.7]} 16... Re7 {[%clk 0:00:46.5]} 17. Kd1 {[%clk 0:01:58.1]} 17... Nxc3+
{[%clk 0:00:29.2]} 18. Nxc3 {[%clk 0:01:57.8]} 18... O-O {[%clk 0:00:29.1]} 19.
Be3 {[%clk 0:01:32.3]} 19... Rd8+ {[%clk 0:00:26.4]} 20. Kc1 {[%clk 0:01:32.6]}
20... Red7 {[%clk 0:00:20.2]} 21. a3 {[%clk 0:01:23]} 21... Bxc3 {[%clk
0:00:15.3]} 22. bxc3 {[%clk 0:01:23.9]} 22... c5 {[%clk 0:00:15.9]} 23. Bxc5
{[%clk 0:01:15.4]} 23... Rd2 {[%clk 0:00:15.3]} 24. Bxa7 {[%clk 0:01:04.8]}
24... Be6 {[%clk 0:00:15]} 25. Be3 {[%clk 0:01:03.6]} 25... Re2 {[%clk
0:00:15.2]} 26. Rd1 {[%clk 0:01:02.7]} 26... Rb8 {[%clk 0:00:15.8]} 27. Rb1
{[%clk 0:00:52.1]} 27... Rxc2+ {[%clk 0:00:15.4]} 28. Kxc2 {[%clk 0:00:51.4]}
28... Bf5+ {[%clk 0:00:16]} 29. Kd2 {[%clk 0:00:49.5]} 29... Bxb1 {[%clk
0:00:16.6]} 30. a4 {[%clk 0:00:40.1]} 30... h6 {[%clk 0:00:15.4]} 31. a5 {[%clk
0:00:40]} 31... Be4 {[%clk 0:00:15.5]} 32. a6 {[%clk 0:00:38.6]} 32... Rb2+
{[%clk 0:00:15.5]} 33. Ke1 {[%clk 0:00:39.1]} 33... Ra2 {[%clk 0:00:15.1]} 34.
a7 {[%clk 0:00:39.7]} 34... Bxg2 {[%clk 0:00:15.3]} 35. Bb6 {[%clk 0:00:32.2]}
35... h5 {[%clk 0:00:14.3]} 36. c4 {[%clk 0:00:31.8]} 36... h4 {[%clk 0:00:14]}
37. c5 {[%clk 0:00:26.4]} 37... Kh7 {[%clk 0:00:13.9]} 38. Rd6 {[%clk
0:00:26.1]} 38... Bf3 {[%clk 0:00:10.9]} 39. c6 {[%clk 0:00:15.5]} 39... Re2+
{[%clk 0:00:11]} 40. Kf1 {[%clk 0:00:16]} 40... Rc2 {[%clk 0:00:11.1]} 41. Ba5
{[%clk 0:00:06.8]} 41... Rxc6 {[%clk 0:00:08.6]} 42. Rd3 {[%clk 0:00:03.1]}
42... Rc1+ {[%clk 0:00:07.9]} 43. Be1 {[%clk 0:00:03.8]} 43... Bb7 {[%clk
0:00:04.6]} 44. Rb3 {[%clk 0:00:04.2]} 44... Bd5 {[%clk 0:00:04.6]} 45. Rb8
{[%clk 0:00:03.7]} 45... Ra1 {[%clk 0:00:03.2]} 46. Ke2 {[%clk 0:00:03.6]} 46...
Kg6 {[%clk 0:00:02.9]} 47. Rd8 {[%clk 0:00:02.1]} 47... Bc4+ {[%clk 0:00:01.2]}
48. Ke3 {[%clk 0:00:02.8]} 48... Rxa7 {[%clk 0:00:02.1]} 49. Rd6+ {[%clk
0:00:03.5]} 49... Be6 {[%clk 0:00:02.6]} 50. Bc3 {[%clk 0:00:04.2]} 50... Ra3
{[%clk 0:00:03.1]} 51. Kd2 {[%clk 0:00:04.1]} 51... Ra4 {[%clk 0:00:03.5]} 52.
Rd4 {[%clk 0:00:04.2]} 52... Rxd4+ {[%clk 0:00:03.6]} 53. Bxd4 {[%clk
0:00:05.1]} 53... f6 {[%clk 0:00:04]} 54. Ke3 {[%clk 0:00:06]} 54... Kf5 {[%clk
0:00:04.6]} 55. Kf3 {[%clk 0:00:06.2]} 55... g5 {[%clk 0:00:04.8]} 56. Kg2
{[%clk 0:00:06.5]} 56... Bd5+ {[%clk 0:00:05.1]} 57. Kh2 {[%clk 0:00:06.9]}
57... Ke6 {[%clk 0:00:05.2]} 58. Be3 {[%clk 0:00:06.2]} 58... Kf5 {[%clk
0:00:05.3]} 59. Bd4 {[%clk 0:00:06.7]} 59... Bc6 {[%clk 0:00:05.9]} 60. Bc3
{[%clk 0:00:06.8]} 60... Bd7 {[%clk 0:00:06.5]} 61. Bb2 {[%clk 0:00:06.7]} 61...
Ke6 {[%clk 0:00:06.6]} 62. Bc1 {[%clk 0:00:06.7]} 62... Kf7 {[%clk 0:00:07.3]}
63. f4 {[%clk 0:00:07]} 63... Kg6 {[%clk 0:00:04.2]} 64. fxg5 {[%clk 0:00:07.3]}
64... fxg5 {[%clk 0:00:05.1]} 65. Bd2 {[%clk 0:00:08]} 65... Kf5 {[%clk
0:00:05.5]} 66. Bc1 {[%clk 0:00:08]} 66... Bc6 {[%clk 0:00:06.2]} 67. Bd2 {[%clk
0:00:08.4]} 67... Bd7 {[%clk 0:00:06.5]} 68. Bc1 {[%clk 0:00:09]} 68... Kg6
{[%clk 0:00:07]} 69. Bd2 {[%clk 0:00:09.4]} 69... Kh5 {[%clk 0:00:07.6]} 70. Bc1
{[%clk 0:00:10]} 70... Bxh3 {[%clk 0:00:07.9]} 71. Kxh3 {[%clk 0:00:10.1]} 71...
g4+ {[%clk 0:00:08.8]} 72. Kh2 {[%clk 0:00:10.6]} 72... g3+ {[%clk 0:00:08.7]}
73. Kh3 {[%clk 0:00:11.2]} 73... Kg6 {[%clk 0:00:09.1]} 74. Kxh4 {[%clk
0:00:10.9]} 74... g2 {[%clk 0:00:09.7]} 75. Be3 {[%clk 0:00:11.6]} 75... Kf5
{[%clk 0:00:10.4]} 76. Kg3 {[%clk 0:00:12.1]} 76... Ke4 {[%clk 0:00:10.8]} 77.
Kxg2 {[%clk 0:00:12.4]} 1/2-1/2

[Event "Early-Titled-Tuesday-Blitz-June-18-2024"]
[Site "Chess.com"]
[Date "2024.06.18"]
[Round "10"]
[White "Rawnsdale"]
[Black "tarno17"]
[Result "1-0"]
[WhiteElo "2478"]
[BlackElo "2173"]
[TimeControl "180+1"]
[EndTime "9:59:09 PDT"]
[Termination "Rawnsdale won on time"]

1. e4 {[%clk 0:02:50.1]} 1... c5 {[%clk 0:02:59.1]} 2. Nf3 {[%clk 0:02:49.2]}
2... e6 {[%clk 0:02:59.5]} 3. d4 {[%clk 0:02:49.6]} 3... cxd4 {[%clk 0:03:00]}
4. Nxd4 {[%clk 0:02:50.5]} 4... a6 {[%clk 0:03:00.6]} 5. Nc3 {[%clk 0:02:51]}
5... Qc7 {[%clk 0:03:01]} 6. Be2 {[%clk 0:02:49]} 6... b5 {[%clk 0:02:55.6]} 7.
a3 {[%clk 0:02:45.3]} 7... Bb7 {[%clk 0:02:55.8]} 8. O-O {[%clk 0:02:45.1]} 8...
Nf6 {[%clk 0:02:55.5]} 9. Bf3 {[%clk 0:02:42.2]} 9... Nc6 {[%clk 0:02:50.4]} 10.
Re1 {[%clk 0:02:40.1]} 10... Ne5 {[%clk 0:02:48.1]} 11. Bf4 {[%clk 0:02:20.2]}
11... d6 {[%clk 0:02:31.9]} 12. Bxe5 {[%clk 0:02:15.5]} 12... dxe5 {[%clk
0:02:30.8]} 13. Nb3 {[%clk 0:02:16.4]} 13... Bc5 {[%clk 0:02:05.4]} 14. Qe2
{[%clk 0:02:12.3]} 14... O-O {[%clk 0:02:03.5]} 15. a4 {[%clk 0:02:04.5]} 15...
b4 {[%clk 0:01:56.7]} 16. Na2 {[%clk 0:02:03.7]} 16... a5 {[%clk 0:01:50.1]} 17.
Nac1 {[%clk 0:02:00.9]} 17... Ba6 {[%clk 0:01:32.9]} 18. Nd3 {[%clk 0:01:56.6]}
18... Bb6 {[%clk 0:01:31.3]} 19. Qd2 {[%clk 0:01:43.5]} 19... h6 {[%clk
0:01:21.3]} 20. g3 {[%clk 0:01:34.2]} 20... Rfd8 {[%clk 0:01:18.4]} 21. h3
{[%clk 0:01:31.9]} 21... Rac8 {[%clk 0:01:13.4]} 22. Rac1 {[%clk 0:01:30.1]}
22... Nh7 {[%clk 0:01:01.5]} 23. h4 {[%clk 0:01:21.9]} 23... Nf6 {[%clk
0:01:01.5]} 24. Kg2 {[%clk 0:01:20.9]} 24... Rd7 {[%clk 0:00:55.7]} 25. c4
{[%clk 0:00:44.9]} 25... Rcd8 {[%clk 0:00:45.4]} 26. c5 {[%clk 0:00:41.2]} 26...
Ba7 {[%clk 0:00:36.7]} 27. c6 {[%clk 0:00:27.6]} 27... Rxd3 {[%clk 0:00:36.1]}
28. Qc2 {[%clk 0:00:28]} 28... R3d6 {[%clk 0:00:27.7]} 29. h5 {[%clk 0:00:20.2]}
29... Rc8 {[%clk 0:00:27]} 30. Red1 {[%clk 0:00:20.3]} 30... Rxd1 {[%clk
0:00:23.1]} 31. Qxd1 {[%clk 0:00:20.2]} 31... Rd8 {[%clk 0:00:18.6]} 32. Qe1
{[%clk 0:00:20.4]} 32... Bd4 {[%clk 0:00:18.4]} 33. Nc5 {[%clk 0:00:19.5]} 33...
Bxc5 {[%clk 0:00:17]} 34. Rxc5 {[%clk 0:00:20.4]} 34... Rc8 {[%clk 0:00:13.4]}
35. Qc1 {[%clk 0:00:20.6]} 35... Bd3 {[%clk 0:00:13.3]} 36. Qe3 {[%clk
0:00:19.3]} 36... Bb1 {[%clk 0:00:12.8]} 37. b3 {[%clk 0:00:18.4]} 37... Rd8
{[%clk 0:00:11.5]} 38. Qc1 {[%clk 0:00:16.4]} 38... Bd3 {[%clk 0:00:11.5]} 39.
Qe3 {[%clk 0:00:15.6]} 39... Ba6 {[%clk 0:00:11.8]} 40. Rc1 {[%clk 0:00:15]}
40... Ne8 {[%clk 0:00:11.8]} 41. Qc5 {[%clk 0:00:14.6]} 41... Qd6 {[%clk
0:00:11.2]} 42. Qb6 {[%clk 0:00:12.5]} 42... Bc8 {[%clk 0:00:10.2]} 43. Qxa5
{[%clk 0:00:12]} 43... Qc7 {[%clk 0:00:09.1]} 44. Qxb4 {[%clk 0:00:12]} 44...
Rd3 {[%clk 0:00:07.1]} 45. Qc4 {[%clk 0:00:11.6]} 45... Rd2 {[%clk 0:00:06.6]}
46. b4 {[%clk 0:00:10.9]} 46... Qb6 {[%clk 0:00:06.4]} 47. Qc5 {[%clk
0:00:11.4]} 47... Qxc5 {[%clk 0:00:05]} 48. Rxc5 {[%clk 0:00:12.3]} 48... Rb2
{[%clk 0:00:04.6]} 49. b5 {[%clk 0:00:12.7]} 49... Ra2 {[%clk 0:00:04.6]} 50. b6
{[%clk 0:00:12.5]} 50... Nd6 {[%clk 0:00:03.5]} 51. b7 {[%clk 0:00:08.8]} 51...
Nxb7 {[%clk 0:00:02.9]} 52. cxb7 {[%clk 0:00:09.7]} 52... Bxb7 {[%clk
0:00:03.8]} 53. Rb5 {[%clk 0:00:08.8]} 53... Bc6 {[%clk 0:00:04.2]} 54. Ra5
{[%clk 0:00:09.2]} 54... Rxa4 {[%clk 0:00:04]} 55. Rxe5 {[%clk 0:00:10.1]} 55...
Ra3 {[%clk 0:00:03.5]} 56. Rc5 {[%clk 0:00:09.8]} 56... Ba4 {[%clk 0:00:03.4]}
57. e5 {[%clk 0:00:10]} 57... Bb3 {[%clk 0:00:03.2]} 58. Be4 {[%clk 0:00:10.1]}
58... g6 {[%clk 0:00:02.2]} 59. hxg6 {[%clk 0:00:09.9]} 59... fxg6 {[%clk
0:00:02.5]} 60. Bxg6 {[%clk 0:00:10.5]} 60... Ra8 {[%clk 0:00:02.6]} 61. Be4
{[%clk 0:00:10.2]} 61... Rb8 {[%clk 0:00:02.9]} 62. Rc7 {[%clk 0:00:09.8]} 62...
Ba2 {[%clk 0:00:02.5]} 63. Rd7 {[%clk 0:00:07.8]} 63... Rb5 {[%clk 0:00:02.2]}
64. f4 {[%clk 0:00:07.3]} 64... Rb4 {[%clk 0:00:02.4]} 65. Kf3 {[%clk
0:00:06.7]} 65... Rb3+ {[%clk 0:00:02.3]} 66. Bd3 {[%clk 0:00:05.8]} 66... Bb1
{[%clk 0:00:02.1]} 67. Ke3 {[%clk 0:00:05.6]} 67... Bxd3 {[%clk 0:00:01.6]} 68.
Rxd3 {[%clk 0:00:06.5]} 68... Rb2 {[%clk 0:00:01.9]} 69. Rd6 {[%clk 0:00:06.2]}
69... Kf7 {[%clk 0:00:02.4]} 70. Rd7+ {[%clk 0:00:06.4]} 70... Kg6 {[%clk
0:00:03]} 71. g4 {[%clk 0:00:06]} 71... Rb3+ {[%clk 0:00:03.1]} 72. Ke4 {[%clk
0:00:06.1]} 72... Rb4+ {[%clk 0:00:03.4]} 73. Kf3 {[%clk 0:00:06.3]} 73... Rb3+
{[%clk 0:00:03.8]} 74. Kg2 {[%clk 0:00:06.7]} 74... Rb2+ {[%clk 0:00:03.6]} 75.
Kg3 {[%clk 0:00:07.2]} 75... Rb3+ {[%clk 0:00:03.9]} 76. Kh4 {[%clk 0:00:07.8]}
76... Rb1 {[%clk 0:00:04]} 77. Re7 {[%clk 0:00:07.5]} 77... Rh1+ {[%clk
0:00:03.5]} 78. Kg3 {[%clk 0:00:08.1]} 78... Rg1+ {[%clk 0:00:04.1]} 79. Kf3
{[%clk 0:00:08.6]} 79... Rf1+ {[%clk 0:00:04.7]} 80. Kg3 {[%clk 0:00:07.9]}
80... Rg1+ {[%clk 0:00:05]} 81. Kh3 {[%clk 0:00:07.9]} 81... Rh1+ {[%clk
0:00:02.8]} 82. Kg2 {[%clk 0:00:08.3]} 1-0